bitfinex-derivatives/quotes_BTCF0:USTF0_20250209
["timestamp","ask_amount","ask_price","bid_price","bid_amount"]
[1739137597716,0.3608,95088.0,95083.0,0.009]
[1739137597917,0.3618,95088.0,95081.0,0.00915779]
[1739137598521,0.3618,95088.0,95083.0,0.009]
[1739137599117,0.3618,95088.0,95081.0,0.00915779]
[1739137599717,0.3618,95088.0,95083.0,0.009]
[1739137600515,0.3608,95084.0,95043.0,0.3608]
[1739137600716,0.3608,95064.0,95043.0,0.37272]
[1739137601020,0.3608,95064.0,95034.0,0.01192]
[1739137601418,0.3608,95077.0,95040.0,0.29223219]
[1739137601728,0.3518,95077.0,95064.0,0.3608]
[1739137602020,0.3518,95077.0,95065.0,0.34965827]
[1739137602221,0.3518,95077.0,95066.0,0.03891916]
[1739137602413,0.3518,95077.0,95067.0,0.03891916]
[1739137602609,0.3518,95077.0,95068.0,0.05535827]
[1739137602812,0.3518,95077.0,95069.0,0.05547668]
[1739137603009,0.3518,95077.0,95070.0,0.01496878]
[1739137603220,0.3518,95077.0,95071.0,0.01496878]
[1739137603420,0.3518,95077.0,95064.0,0.009]
[1739137603724,0.3608,95067.0,95064.0,0.009]
[1739137604412,0.3608,95067.0,95044.0,0.3608]
[1739137604613,0.3608,95058.0,95044.0,0.3608]
[1739137604815,0.3608,95050.0,95024.0,0.01192]
[1739137605125,0.3518,95050.0,95024.0,0.01192]
[1739137605920,0.3518,95050.0,95031.0,0.00015779]
[1739137606323,0.3518,95050.0,95044.0,0.009]
[1739137606722,0.00015779,95051.0,95044.0,0.009]
[1739137607020,0.001,95050.0,95044.0,0.009]
[1739137607418,1e-08,95051.0,95049.0,0.3608]
[1739137607924,0.002,95050.0,95049.0,0.3608]
[1739137608914,0.001,95050.0,95049.0,0.3608]
[1739137609114,0.002,95050.0,95049.0,0.3608]
[1739137609326,0.001,95050.0,95049.0,0.3608]
[1739137610128,0.002,95050.0,95049.0,0.3688]
[1739137610825,0.3628,95050.0,95049.0,0.008]
[1739137611519,0.3618,95050.0,95049.0,0.008]
[1739137611823,0.3628,95050.0,95049.0,0.008]
[1739137612028,0.3628,95050.0,95031.0,0.00015779]
[1739137612326,0.3608,95041.0,95031.0,0.00015779]
[1739137613227,0.3628,95050.0,95031.0,0.00015779]
[1739137613228,0.3628,95050.0,95031.0,0.00815779]
[1739137613425,0.3628,95050.0,95039.0,0.3608]
[1739137613426,0.002,95050.0,95039.0,0.3608]
[1739137613930,0.001,95041.0,95040.0,0.5921]
[1739137614125,0.001,95050.0,95040.0,0.5921]
[1739137614324,0.001,95050.0,95049.0,0.3608]
[1739137615628,0.002,95050.0,95049.0,0.3608]
[1739137616125,0.002,95050.0,95041.0,0.01192]
[1739137616725,0.3608,95045.0,95031.0,0.00015779]
[1739137616932,0.001,95050.0,95037.0,0.3608]
[1739137617128,0.002,95050.0,95049.0,0.003]
[1739137617327,0.3608,95073.0,95049.0,0.5986]
[1739137617523,0.3608,95073.0,95050.0,0.2925712]
[1739137617836,0.3608,95073.0,95050.0,0.5956]
[1739137618034,0.3608,95073.0,95063.0,0.3608]
[1739137618831,0.001,95073.0,95063.0,0.3608]
[1739137619223,0.002,95073.0,95063.0,0.3608]
[1739137619728,0.002,95073.0,95058.0,0.00015779]
[1739137619729,0.002,95073.0,95072.0,0.3608]
[1739137619925,0.001,95073.0,95072.0,0.3608]
[1739137620131,0.002,95073.0,95072.0,0.3608]
[1739137620320,0.001,95073.0,95072.0,0.3608]
[1739137620524,0.002,95073.0,95072.0,0.6608]
[1739137620733,0.18114886,95102.0,95072.0,0.3608]
[1739137620934,0.3608,95107.0,95073.0,0.2974]
[1739137621249,0.3608,95107.0,95090.0,0.3608]
[1739137621527,0.3608,95107.0,95100.0,0.3608]
[1739137621732,0.3608,95125.0,95101.0,0.01438633]
[1739137621934,0.00015779,95113.0,95100.0,0.3608]
[1739137622125,0.00015779,95113.0,95101.0,0.01437511]
[1739137622321,0.00015779,95113.0,95111.0,0.3608]
[1739137622522,1e-08,95113.0,95112.0,0.01437511]
[1739137622724,1e-08,95113.0,95112.0,0.59947511]
[1739137622923,0.21134034,95138.0,95112.0,0.58627511]
[1739137623129,0.21134034,95138.0,95125.0,0.3608]
[1739137623325,0.24153181,95143.0,95137.0,0.3608]
[1739137623528,0.24153181,95143.0,95142.0,0.3608]
[1739137623729,0.3608,95189.0,95142.0,0.3608]
[1739137623730,1e-08,95154.0,95142.0,1.53726862]
[1739137623923,0.00060001,95185.0,95153.0,0.3608]
[1739137624126,0.3608,95189.0,95169.0,0.3608]
[1739137624435,0.21451994,95182.0,95170.0,0.03794862]
[1739137624630,0.21451994,95182.0,95171.0,0.03794862]
[1739137624835,0.3608,95178.0,95172.0,0.05436872]
[1739137625026,0.3608,95178.0,95173.0,0.01437511]
[1739137625228,0.21451994,95182.0,95174.0,0.01437511]
[1739137625530,0.21451994,95182.0,95175.0,0.01437511]
[1739137625723,0.21451994,95182.0,95176.0,0.01437511]
[1739137626033,0.21451994,95182.0,95177.0,0.01437511]
[1739137626234,0.21451994,95182.0,95178.0,0.01437511]
[1739137626435,0.21451994,95182.0,95179.0,0.01474886]
[1739137626631,0.21451994,95182.0,95178.0,0.3608]
[1739137626826,0.21451994,95182.0,95175.0,0.009]
[1739137627235,0.21451994,95182.0,95176.0,0.3608]
[1739137627529,0.1,95200.0,95181.0,0.3608]
[1739137627733,0.3608,95208.0,95199.0,0.3608]
[1739137627929,0.33231428,95213.0,95199.0,0.3608]
[1739137627930,0.33231428,95213.0,95200.0,0.0146967]
[1739137628124,0.33231428,95213.0,95212.0,0.3608]
[1739137628327,0.3608,95234.0,95212.0,0.3608]
[1739137628328,0.3608,95234.0,95224.0,0.2099994]
[1739137628530,0.3608,95234.0,95217.0,0.3608]
[1739137628743,0.3608,95225.0,95213.0,0.2100222]
[1739137628924,0.3608,95225.0,95216.0,0.0001576]
[1739137628925,0.3608,95217.0,95216.0,0.0001576]
[1739137629233,9.216e-05,95235.0,95216.0,0.0001576]
[1739137629234,9.216e-05,95235.0,95216.0,0.3609576]
[1739137629537,9.216e-05,95235.0,95232.0,0.3608]
[1739137629734,9.216e-05,95235.0,95226.0,0.3608]
[1739137629928,9.216e-05,95235.0,95216.0,0.3609576]
[1739137629929,0.001,95225.0,95216.0,0.3609576]
[1739137630237,0.3618,95225.0,95216.0,0.0001576]
[1739137631035,0.001,95225.0,95224.0,0.3608]
[1739137631228,0.001,95225.0,95216.0,0.0001576]
[1739137631428,0.001,95225.0,95216.0,0.0091576]
[1739137631833,0.2099867,95230.0,95226.0,0.009]
[1739137632030,0.3112,95233.0,95226.0,0.009]
[1739137632542,0.3112,95233.0,95216.0,0.0001576]
[1739137632733,0.3112,95233.0,95216.0,0.0181576]
[1739137632933,9.216e-05,95235.0,95225.0,0.3608]
[1739137633534,9.216e-05,95235.0,95226.0,0.009]
[1739137634128,9.216e-05,95235.0,95234.0,0.3608]
[1739137634729,0.21006726,95235.0,95226.0,0.018]
[1739137634932,9.216e-05,95235.0,95226.0,0.009]
[1739137635135,0.3608,95229.0,95226.0,0.018]
[1739137635640,0.2099928,95227.0,95225.0,0.009]
[1739137635838,0.2009928,95227.0,95225.0,0.009]
[1739137636037,0.2100148,95217.0,95216.0,0.0001576]
[1739137636266,0.17172711,95228.0,95202.0,0.3608]
[1739137636267,0.29201479,95220.0,95202.0,0.3608]
[1739137636437,0.3125,95226.0,95202.0,0.3608]
[1739137636632,0.2100401,95206.0,95202.0,0.3608]
[1739137636834,0.210019,95216.0,95202.0,0.3608]
[1739137637034,0.3035,95226.0,95215.0,0.3608]
[1739137637238,0.2100064,95221.0,95215.0,0.3608]
[1739137637539,0.3608,95247.0,95217.0,0.2100148]
[1739137637540,0.2099599,95242.0,95217.0,0.2100148]
[1739137637844,0.0524728,95273.0,95239.0,0.3608]
[1739137637845,0.3608,95273.0,95239.0,0.3608]
[1739137638143,0.2099277,95257.0,95239.0,0.3608]
[1739137638329,0.209931,95256.0,95240.0,0.29201479]
[1739137638536,0.2099331,95255.0,95240.0,0.29201479]
[1739137638733,0.0884331,95255.0,95253.0,0.3608]
[1739137638938,0.0884331,95255.0,95240.0,0.29201479]
[1739137639135,0.0884331,95255.0,95239.0,0.3608]
[1739137639340,9.195e-05,95258.0,95239.0,0.3608]
[1739137639341,9.195e-05,95258.0,95249.0,0.3608]
[1739137639539,0.2099421,95250.0,95239.0,0.3608]
[1739137639838,9.195e-05,95258.0,95239.0,0.3608]
[1739137640038,0.001,95255.0,95253.0,0.009]
[1739137640641,0.24106734,95271.0,95249.0,0.3608]
[1739137640839,0.001,95250.0,95249.0,0.3608]
[1739137641343,0.2099572,95244.0,95241.0,0.3608]
[1739137641644,0.001,95250.0,95241.0,0.3608]
[1739137641840,0.2099474,95248.0,95241.0,0.3608]
[1739137642043,0.001,95250.0,95239.0,0.009]
[1739137642235,0.2009624,95241.0,95238.0,0.00015751]
[1739137642435,0.18040549,95241.0,95238.0,0.00015751]
[1739137642634,0.3124,95247.0,95241.0,0.009]
[1739137642841,0.3608,95242.0,95241.0,0.009]
[1739137643036,0.2099578,95243.0,95241.0,0.009]
[1739137643246,0.3124,95247.0,95241.0,0.009]
[1739137643549,0.001,95250.0,95241.0,0.009]
[1739137643931,0.001,95242.0,95241.0,0.018]
[1739137644347,0.001,95250.0,95247.0,0.2099471]
[1739137645546,0.001,95250.0,95247.0,0.21887896]
[1739137645743,0.001,95250.0,95241.0,0.009]
[1739137645944,0.2099697,95238.0,95234.0,0.31364527]
[1739137646242,0.2099751,95235.0,95234.0,0.31364527]
[1739137647039,0.3608,95248.0,95223.0,0.2100015]
[1739137647242,0.2099751,95235.0,95234.0,0.002]
[1739137647746,0.2079751,95235.0,95234.0,0.002]
[1739137647947,0.001,95235.0,95234.0,0.002]
[1739137648443,0.001,95235.0,95234.0,0.01699425]
[1739137648646,0.002,95235.0,95234.0,0.02299425]
[1739137648947,0.002,95235.0,95234.0,0.022943]
[1739137649136,0.002,95235.0,95234.0,0.2329203]
[1739137649335,0.002,95235.0,95234.0,0.61768445]
[1739137649544,0.21011301,95244.0,95238.0,0.2099681]
[1739137649734,0.00015751,95244.0,95243.0,0.3608]
[1739137649937,0.21011281,95244.0,95243.0,0.39970715]
[1739137650445,0.00015751,95244.0,95243.0,0.39970715]
[1739137650844,0.3608,95268.0,95243.0,0.39970715]
[1739137651053,0.2099239,95259.0,95256.0,0.3608]
[1739137651238,0.2099256,95258.0,95257.0,0.03890715]
[1739137652046,0.3608,95276.0,95257.0,0.39970715]
[1739137652244,0.3608,95295.0,95269.0,0.3608]
[1739137652446,0.2098958,95271.0,95270.0,0.03856432]
[1739137652951,0.2098958,95271.0,95257.0,0.009]
[1739137652952,0.2099244,95258.0,95257.0,0.009]
[1739137654439,0.2099443,95249.0,95248.0,0.00015751]
[1739137654640,0.35022701,95251.0,95234.0,0.0012]
[1739137654858,0.2099906,95228.0,95216.0,0.210017]
[1739137655150,0.2099906,95228.0,95214.0,0.3608]
[1739137655342,0.2099906,95228.0,95215.0,0.2100176]
[1739137655542,0.2009906,95228.0,95216.0,0.2100163]
[1739137655743,0.24723003,95241.0,95222.0,0.3608]
[1739137655940,0.24667002,95241.0,95222.0,0.3608]
[1739137656152,0.00015751,95237.0,95222.0,0.3608]
[1739137656348,0.2099906,95228.0,95218.0,0.00015751]
[1739137656546,0.3608,95229.0,95206.0,0.50268028]
[1739137656747,0.5708369,95207.0,95206.0,0.18316448]
[1739137657148,0.3608,95207.0,95196.0,0.00124]
[1739137657449,0.17170147,95207.0,95186.0,0.62992612]
[1739137657654,0.2100415,95205.0,95186.0,0.62992612]
[1739137657856,0.2100684,95193.0,95187.0,0.00015751]
[1739137658051,0.2100684,95193.0,95188.0,0.2100788]
[1739137658452,0.2100774,95189.0,95187.0,0.00015751]
[1739137659747,0.2110774,95189.0,95187.0,0.00015751]
[1739137659953,0.2110774,95189.0,95183.0,0.69179248]
[1739137659954,0.5110774,95189.0,95183.0,0.69179248]
[1739137660148,0.2100876,95184.0,95183.0,0.69059248]
[1739137660853,0.2101121,95173.0,95163.0,0.00157611]
[1739137661258,0.2081121,95173.0,95163.0,0.00157611]
[1739137661757,0.2101162,95172.0,95163.0,0.00157611]
[1739137662455,0.2101191,95170.0,95163.0,0.00157611]
[1739137662655,0.2101191,95170.0,95168.0,0.3628]
[1739137662953,0.001,95173.0,95171.0,0.2101151]
[1739137663160,0.001,95173.0,95168.0,0.3628]
[1739137663161,0.0001576,95180.0,95168.0,0.3628]
[1739137663350,0.3608,95211.0,95179.0,0.3608]
[1739137663556,0.2100545,95199.0,95180.0,0.2100952]
[1739137663753,0.2100545,95199.0,95188.0,0.3608]
[1739137663955,0.29201479,95210.0,95188.0,0.3608]
[1739137664146,0.2100539,95200.0,95188.0,0.3608]
[1739137665053,0.001,95199.0,95188.0,0.3678]
[1739137665245,0.2100567,95198.0,95196.0,0.3608]
[1739137665651,0.2100567,95198.0,95197.0,0.43756466]
[1739137666061,0.2100567,95198.0,95197.0,0.33081716]
[1739137666360,0.5708567,95198.0,95197.0,0.33081716]
[1739137666763,0.5708567,95198.0,95197.0,0.2505652]
[1739137666966,0.5708567,95198.0,95184.0,0.0001576]
[1739137666967,0.2100744,95190.0,95184.0,0.0001576]
[1739137667256,0.50212749,95173.0,95159.0,0.38695045]
[1739137667457,0.29201479,95173.0,95159.0,0.32946166]
[1739137667758,0.2101355,95163.0,95159.0,0.2479774]
[1739137667953,0.2101355,95163.0,95159.0,0.21112744]
[1739137668157,0.2101355,95163.0,95159.0,0.14641514]
[1739137668359,0.2101355,95163.0,95152.0,0.35759911]
[1739137669161,0.2111355,95163.0,95152.0,0.35759911]
[1739137669859,0.2101433,95159.0,95152.0,0.35759911]
[1739137671253,0.2101583,95152.0,95151.0,0.3609576]
[1739137671958,0.002,95159.0,95151.0,0.3609576]
[1739137672155,0.002,95159.0,95156.0,0.2101481]
[1739137672659,0.001,95159.0,95156.0,0.2101481]
[1739137672861,0.22092303,95170.0,95156.0,0.2101481]
[1739137673061,0.22092303,95170.0,95165.0,0.3608]
[1739137673254,0.3608,95198.0,95165.0,0.3608]
[1739137673456,0.3608,95198.0,95169.0,0.2101206]
[1739137673754,0.2100763,95190.0,95169.0,0.2101206]
[1739137673961,0.2100545,95200.0,95186.0,0.2100829]
[1739137674260,0.3608,95210.0,95170.0,0.33]
[1739137674261,0.2100386,95207.0,95195.0,0.3608]
[1739137674462,0.2100203,95215.0,95192.0,0.2100679]
[1739137674655,0.210043,95205.0,95192.0,0.2100679]
[1739137674857,0.29201479,95210.0,95185.0,0.2100844]
[1739137675258,0.0001576,95208.0,95189.0,0.0001576]
[1739137675957,0.3608,95205.0,95189.0,0.0001576]
[1739137676157,0.0001576,95208.0,95197.0,0.3608]
[1739137676960,0.0011576,95208.0,95197.0,0.3608]
[1739137677258,0.2100396,95206.0,95197.0,0.3608]
[1739137677767,0.2100436,95204.0,95197.0,0.3608]
[1739137678467,0.2100436,95204.0,95197.0,0.3698]
[1739137678964,0.2100436,95204.0,95197.0,0.3608]
[1739137679153,0.001,95204.0,95197.0,0.3698]
[1739137679461,0.001,95204.0,95197.0,0.3788]
[1739137679656,0.2100567,95198.0,95197.0,0.018]
[1739137679860,0.2100744,95190.0,95189.0,0.0001576]
[1739137680056,0.3608,95203.0,95173.0,0.3608]
[1739137680057,0.29201479,95200.0,95173.0,0.3608]
[1739137680261,0.001,95204.0,95199.0,0.3608]
[1739137680860,0.2100523,95200.0,95199.0,0.29680931]
[1739137681163,0.2100523,95200.0,95176.0,0.64604]
[1739137681164,0.210081,95187.0,95176.0,1.00684]
[1739137681467,0.2100902,95183.0,95176.0,1.006]
[1739137681869,0.29201479,95190.0,95176.0,0.6452]
[1739137682172,0.2101017,95178.0,95176.0,0.6452]
[1739137682356,0.3608,95196.0,95176.0,0.6452]
[1739137682557,0.3608,95196.0,95177.0,0.3608]
[1739137682861,0.2100833,95186.0,95177.0,0.3608]
[1739137683066,0.0001576,95196.0,95177.0,0.3608]
[1739137683368,0.2100994,95179.0,95177.0,0.3608]
[1739137683568,0.2101031,95177.0,95176.0,0.00084]
[1739137683769,0.2101119,95173.0,95172.0,0.0001576]
[1739137684158,0.3608,95181.0,95157.0,0.3013]
[1739137684362,0.29201479,95170.0,95149.0,0.24996142]
[1739137684560,0.2101627,95150.0,95149.0,0.24996142]
[1739137685071,0.2091627,95150.0,95149.0,0.24996142]
[1739137685468,0.2101454,95158.0,95149.0,0.24996142]
[1739137685861,0.001,95150.0,95149.0,0.25896142]
[1739137686068,0.2101198,95170.0,95149.0,0.61976142]
[1739137686268,0.2101198,95170.0,95162.0,0.3608]
[1739137686468,0.2101249,95168.0,95162.0,0.3608]
[1739137687672,0.0001576,95175.0,95162.0,0.3608]
[1739137687872,0.0001576,95175.0,95160.0,0.24996142]
[1739137687873,0.3608,95173.0,95160.0,0.24996142]
[1739137688069,0.001,95168.0,95160.0,0.24996142]
[1739137688378,0.2101384,95161.0,95160.0,0.03247996]
[1739137690181,0.2111384,95161.0,95160.0,6e-08]
[1739137690381,0.5111384,95161.0,95160.0,6e-08]
[1739137690768,0.5101384,95161.0,95160.0,6e-08]
[1739137691077,0.5101384,95161.0,95155.0,0.0001576]
[1739137691078,0.2101494,95156.0,95155.0,0.0001576]
[1739137691284,0.2101693,95147.0,95145.0,0.31245177]
[1739137693170,0.2111693,95147.0,95145.0,0.31245177]
[1739137693669,0.2121693,95147.0,95145.0,0.31245177]
[1739137694179,0.2111693,95147.0,95145.0,0.31245177]
[1739137694473,0.2121693,95147.0,95145.0,0.31245177]
[1739137694780,0.2101892,95138.0,95136.0,0.0001576]
[1739137696082,0.2101892,95138.0,95137.0,0.3608]
[1739137696290,0.2101892,95138.0,95136.0,0.0001576]
[1739137696573,0.2111892,95138.0,95136.0,0.0001576]
[1739137697366,0.01065135,95146.0,95137.0,0.2101914]
[1739137697679,0.001,95138.0,95137.0,0.2101914]
[1739137697876,0.2101544,95154.0,95136.0,0.0001576]
[1739137698085,0.2101544,95154.0,95145.0,0.3608]
[1739137698284,0.2101544,95154.0,95153.0,0.3608]
[1739137699181,0.2111544,95154.0,95153.0,0.3608]
[1739137699388,0.001,95154.0,95144.0,0.3608]
[1739137699682,0.39126133,95154.0,95153.0,0.001]
[1739137699870,0.2121539,95154.0,95153.0,0.001]
[1739137700074,0.2101897,95138.0,95136.0,0.0001576]
[1739137700274,0.2091897,95138.0,95136.0,0.0001576]
[1739137700680,0.2001897,95138.0,95136.0,0.0001576]
[1739137702182,0.1921897,95138.0,95136.0,0.0091576]
[1739137702580,0.1931897,95138.0,95136.0,0.0181576]
[1739137703180,0.1931897,95138.0,95129.0,0.00157683]
[1739137703181,0.3608,95137.0,95129.0,0.00157683]
[1739137703588,0.3608,95134.0,95114.0,0.37578213]
[1739137703780,0.21024,95115.0,95114.0,0.37494213]
[1739137703985,0.21024,95115.0,95114.0,0.29600376]
[1739137705083,0.2102489,95111.0,95110.0,0.31313947]
[1739137705285,0.2102643,95104.0,95103.0,0.29600376]
[1739137705485,0.2102643,95104.0,95080.0,0.49978387]
[1739137705486,0.2102997,95088.0,95080.0,0.49978387]
[1739137705684,0.2032997,95088.0,95080.0,0.49978387]
[1739137706277,0.1962997,95088.0,95080.0,0.49978387]
[1739137707792,0.1972997,95088.0,95080.0,0.49978387]
[1739137707983,0.1982997,95088.0,95080.0,0.49978387]
[1739137708487,0.1982997,95088.0,95087.0,0.17536099]
[1739137708891,0.001,95088.0,95087.0,0.17536099]
[1739137709082,0.002,95088.0,95087.0,0.53616099]
[1739137709282,0.00015769,95097.0,95087.0,0.53616099]
[1739137709483,0.00015769,95097.0,95095.0,0.3608]
[1739137710283,0.18314666,95155.0,95095.0,0.3608]
[1739137710284,0.17910743,95140.0,95095.0,0.3608]
[1739137710489,0.2102283,95121.0,95113.0,0.3608]
[1739137710693,0.17910743,95130.0,95113.0,0.3608]
[1739137710895,0.2102258,95122.0,95113.0,0.3608]
[1739137711198,0.3608,95141.0,95121.0,0.3608]
[1739137711382,0.17910743,95150.0,95130.0,0.3608]
[1739137711699,0.2102157,95126.0,95124.0,0.3608]
[1739137711995,0.001,95130.0,95113.0,0.001]
[1739137712295,0.2102387,95116.0,95115.0,0.36095769]
[1739137714200,0.2112387,95116.0,95115.0,0.36095769]
[1739137714891,0.2102387,95116.0,95115.0,0.36095769]
[1739137715093,0.2112387,95116.0,95115.0,0.36095769]
[1739137715294,0.002,95116.0,95115.0,0.36095769]
[1739137715799,0.001,95116.0,95115.0,0.36095769]
[1739137715989,0.002,95116.0,95115.0,0.36095769]
[1739137716190,0.2122378,95116.0,95115.0,0.00015769]
[1739137716390,0.2112378,95116.0,95115.0,0.00015769]
[1739137716593,0.2122378,95116.0,95115.0,0.00015769]
[1739137716990,0.2102643,95104.0,95103.0,0.18756085]
[1739137717192,0.3608,95114.0,95094.0,0.18756085]
[1739137717495,0.3608,95102.0,95094.0,0.18756085]
[1739137717691,0.2102842,95095.0,95094.0,0.18756085]
[1739137718897,0.001,95095.0,95094.0,0.18756085]
[1739137719196,0.001,95102.0,95094.0,0.18766085]
[1739137719402,0.2102682,95103.0,95100.0,0.3608]
[1739137720497,0.210271,95101.0,95100.0,0.3608]
[1739137720693,0.00015769,95104.0,95100.0,0.3608]
[1739137721703,0.001,95101.0,95100.0,0.3608]
[1739137722391,0.00115769,95104.0,95100.0,0.5710732]
[1739137722593,0.2102688,95102.0,95101.0,0.3228]
[1739137722798,0.210282,95096.0,95095.0,5.168e-05]
[1739137725001,0.212282,95096.0,95095.0,5.168e-05]
[1739137725502,0.001,95096.0,95095.0,0.36085168]
[1739137725695,0.002,95096.0,95095.0,0.36085168]
[1739137726098,0.001,95096.0,95095.0,0.36085168]
[1739137726314,0.002,95096.0,95095.0,0.61305168]
[1739137726896,0.002,95096.0,95095.0,5.168e-05]
[1739137728108,0.002,95096.0,95085.0,0.00010524]
[1739137728302,0.002,95096.0,95069.0,0.3399]
[1739137728303,0.2628584,95094.0,95092.0,1e-08]
[1739137728906,0.29222053,95095.0,95069.0,0.37604062]
[1739137729113,0.2103395,95070.0,95069.0,0.37604062]
[1739137730905,0.2113395,95070.0,95069.0,0.37704062]
[1739137732004,0.2123395,95070.0,95069.0,0.001]
[1739137732407,0.2113395,95070.0,95069.0,0.001]
[1739137732603,0.2123395,95070.0,95069.0,0.001]
[1739137733612,0.002,95070.0,95054.0,0.3608]
[1739137733801,0.2103698,95057.0,95053.0,0.3175]
[1739137734006,0.2103698,95057.0,95046.0,0.58368]
[1739137734200,0.2103698,95057.0,95046.0,0.5828]
[1739137734602,0.3608,95056.0,95037.0,0.6988]
[1739137734809,0.2104103,95038.0,95037.0,0.6988]
[1739137735203,0.2104103,95038.0,95035.0,0.37604062]
[1739137735204,0.2104147,95036.0,95035.0,0.37604062]
[1739137737615,0.2124147,95036.0,95035.0,0.37704062]
[1739137737918,0.22343563,95036.0,95035.0,0.37704062]
[1739137738111,0.22343563,95036.0,95019.0,0.4387295]
[1739137738112,0.31202093,95036.0,95019.0,0.4387295]
[1739137738311,0.9320502,95020.0,95019.0,0.4387295]
[1739137738509,0.5712502,95020.0,95019.0,0.4387295]
[1739137740308,0.3608,95020.0,95004.0,0.5611439]
[1739137740503,0.5712834,95005.0,95004.0,0.5611439]
[1739137740710,0.5712834,95005.0,95004.0,0.31327673]
[1739137741313,0.210515,94991.0,94984.0,0.43858743]
[1739137741507,0.2105276,94985.0,94984.0,0.43858743]
[1739137742110,0.2105276,94985.0,94984.0,0.42694637]
[1739137742308,0.3608,94990.0,94984.0,0.42694637]
[1739137742510,0.00015786,94994.0,94992.0,0.2105121]
[1739137742822,0.00015786,94994.0,94984.0,0.42694637]
[1739137742823,0.3608,95002.0,94986.0,0.3608]
[1739137743119,0.3608,95002.0,94998.0,0.2104971]
[1739137743301,0.001,95005.0,94998.0,0.2104971]
[1739137743505,0.001,95005.0,94987.0,0.6568]
[1739137743809,0.19129579,95000.0,94989.0,0.210518]
[1739137744115,0.001,95005.0,94987.0,0.6568]
[1739137744116,0.00115786,95005.0,95002.0,0.2104897]
[1739137744415,0.1,95002.0,94987.0,0.00015786]
[1739137744619,0.2105168,94990.0,94987.0,0.00015786]
[1739137745219,0.3608,94995.0,94987.0,0.00015786]
[1739137745809,0.001,94990.0,94987.0,0.00015786]
[1739137747207,0.3608,94988.0,94987.0,0.00015786]
[1739137747406,0.3608,94988.0,94965.0,0.2619]
[1739137747607,0.3608,94976.0,94965.0,0.2619]
[1739137748015,0.3608,94988.0,94973.0,0.3608]
[1739137748309,0.3608,94988.0,94970.0,0.2105586]
[1739137748510,0.3618,94988.0,94970.0,0.2105586]
[1739137748709,0.3618,94988.0,94966.0,0.6411]
[1739137748915,0.3608,94978.0,94966.0,0.3235]
[1739137749105,0.2105533,94974.0,94950.0,0.3608]
[1739137749309,0.2105533,94974.0,94951.0,0.3235]
[1739137750313,0.37150993,94978.0,94965.0,0.2105716]
[1739137750518,0.3608,94978.0,94965.0,0.2105716]
[1739137750718,0.3608,94978.0,94961.0,0.3608]
[1739137751513,0.001,94974.0,94961.0,0.3608]
[1739137751923,0.001,94974.0,94962.0,0.2105781]
[1739137752125,0.001,94978.0,94962.0,0.8680781]
[1739137752423,0.002,94978.0,94962.0,0.8680781]
[1739137752623,0.3628,94978.0,94962.0,0.8680781]
[1739137752825,0.001,94974.0,94962.0,0.8680781]
[1739137753024,0.001,94974.0,94962.0,0.8580781]
[1739137753220,0.001,94974.0,94964.0,0.2105731]
[1739137753823,0.3608,94965.0,94962.0,0.6581]
[1739137754018,0.2115526,94974.0,94962.0,0.6575]
[1739137754424,0.19129579,94972.0,94962.0,0.6575]
[1739137754821,0.22257683,94974.0,94962.0,0.6575]
[1739137755025,0.001,94965.0,94962.0,0.6575]
[1739137755327,0.2106029,94952.0,94930.0,0.3608]
[1739137755522,0.3608,94944.0,94935.0,0.2106369]
[1739137755824,0.2106109,94948.0,94932.0,0.3531]
[1739137756121,0.2106109,94948.0,94939.0,0.3608]
[1739137756333,0.01068467,94951.0,94939.0,0.3608]
[1739137756514,0.55285375,94953.0,94939.0,0.3608]
[1739137756714,0.19145374,94953.0,94939.0,0.3608]
[1739137756910,0.00015795,94953.0,94944.0,0.2553]
[1739137757620,0.00015795,94953.0,94945.0,0.3549]
[1739137757821,0.001,94948.0,94945.0,0.3549]
[1739137758015,0.001,94948.0,94944.0,0.2553]
[1739137758523,0.00215795,94953.0,94951.0,0.2106029]
[1739137758721,0.19129579,94961.0,94947.0,0.3608]
[1739137758919,0.3608,94953.0,94945.0,0.3523]
[1739137759223,0.3608,94966.0,94947.0,0.3608]
[1739137759424,0.3608,94966.0,94957.0,0.3608]
[1739137759616,0.3608,94966.0,94950.0,0.210603]
[1739137759816,0.3608,94966.0,94957.0,0.3608]
[1739137760521,0.3608,94966.0,94957.0,0.2608]
[1739137761519,0.3618,94966.0,94957.0,0.2608]
[1739137761716,0.3628,94966.0,94957.0,0.2608]
[1739137761916,0.002,94966.0,94957.0,0.2608]
[1739137762727,0.3608,94962.0,94952.0,0.00015795]
[1739137762925,0.55209579,94962.0,94952.0,0.00015795]
[1739137763226,0.3608,94962.0,94952.0,0.00015795]
[1739137763820,0.3608,94953.0,94952.0,0.00015795]
[1739137764015,0.5526958,94962.0,94952.0,0.00015795]
[1739137764216,0.55409579,94962.0,94952.0,0.00015795]
[1739137765021,0.001,94953.0,94952.0,0.00015795]
[1739137765826,0.3628,94962.0,94952.0,0.00015795]
[1739137766021,0.55409579,94962.0,94952.0,0.00015795]
[1739137766622,0.2105928,94956.0,94952.0,0.00015795]
[1739137767121,0.3608,94953.0,94927.0,0.3608]
[1739137767330,0.19129579,94937.0,94927.0,0.3608]
[1739137768119,0.19129579,94937.0,94927.0,0.3388]
[1739137768317,0.20183592,94937.0,94927.0,0.3388]
[1739137768523,0.3608,94928.0,94918.0,0.3608]
[1739137768728,0.2106738,94919.0,94907.0,0.3608]
[1739137769023,0.55209579,94920.0,94907.0,0.3608]
[1739137769726,0.74339158,94920.0,94907.0,0.3608]
[1739137769934,0.3608,94908.0,94885.0,0.2107492]
[1739137770116,0.3608,94893.0,94885.0,0.2107492]
[1739137770426,0.3608,94896.0,94885.0,0.2107492]
[1739137770627,0.00015804,94898.0,94885.0,0.2107492]
[1739137770826,0.00015804,94898.0,94879.0,0.3608]
[1739137771021,0.19129579,94890.0,94879.0,0.3608]
[1739137771222,0.00015804,94898.0,94879.0,0.3608]
[1739137771423,0.00015804,94898.0,94890.0,0.3608]
[1739137771625,0.00015804,94898.0,94896.0,0.2107235]
[1739137771930,0.00115804,94898.0,94895.0,0.2107262]